fUST/lending_fUST_20241205
["ID","MTS","AMOUNT","RATE_DAILY","PERIOD"]
[344391753,1733404247043,-500.0,0.00030136,7]
[344391754,1733404247053,-188.75762856,0.00030136,7]
[344391755,1733404247074,-311.24237144,0.00030136,7]
[344391756,1733404247083,-500.0,0.00030136,7]
[344391757,1733404247096,-500.0,0.00030136,7]
[344391758,1733404247108,-500.0,0.00030136,7]
[344391759,1733404247118,-500.0,0.00030136,7]
[344391760,1733404247127,-500.0,0.00030136,7]
[344391761,1733404247137,-500.0,0.00030136,7]
[344391762,1733404247146,-500.0,0.00030136,7]
[344391763,1733404247155,-500.0,0.00030136,7]
[344391764,1733404247164,-500.0,0.00030136,7]
[344391765,1733404247174,-69.8502508,0.00030136,7]
[344391766,1733404247185,-430.1497492,0.00030136,7]
[344391767,1733404247194,-500.0,0.00030136,7]
[344391768,1733404247204,-529.7,0.00030136,7]
[344391769,1733404247214,-500.0,0.00030136,7]
[344391770,1733404247223,-420.86069231,0.00030136,7]
[344391839,1733404797246,161.584649,0.00013973,2]
[344391847,1733405324883,6902.89384262,0.0001772,5]
[344391901,1733405432514,-999.7066692,0.00021133,2]
[344391903,1733405432527,-4000.2933308,0.00021133,2]
[344391905,1733405432537,-2248.99067828,0.00021346,2]
[344391911,1733405432590,-300.0,0.00022,2]
[344391913,1733405432599,-38.38022752,0.00022,2]
[344391916,1733405432612,-329.38977248,0.00022,2]
[344391918,1733405432621,-300.0,0.00022,2]
[344391920,1733405432631,-300.0,0.00022,2]
[344391922,1733405432640,-300.0,0.00022,2]
[344391924,1733405432649,-300.0,0.00022,2]
[344391926,1733405432659,-300.0,0.00022,2]
[344391928,1733405432668,-300.0,0.00022,2]
[344391930,1733405432677,-300.0,0.00022,2]
[344391932,1733405432686,-300.0,0.00022,2]
[344391934,1733405432694,-300.0,0.00022,2]
[344391935,1733405432705,-300.0,0.00022,2]
[344391937,1733405432715,-500.0,0.000253,2]
[344391939,1733405432724,-500.0,0.000254,3]
[344391940,1733405432733,-500.0,0.000255,5]
[344391941,1733405432743,-691.0,0.000282,13]
[344391942,1733405432752,-870.11701586,0.00029,30]
[344391943,1733405432762,-414.0,0.0002957,27]
[344391944,1733405432771,-157.851,0.0002963,2]
[344391945,1733405432780,-691.0,0.000297,14]
[344391946,1733405432790,-150.0,0.00029972,2]
[344391947,1733405432800,-266.86,0.0003,31]
[344391948,1733405432809,-266.86,0.0003,31]
[344391949,1733405432819,-266.86,0.0003,31]
[344391950,1733405432827,-266.86,0.0003,31]
[344391951,1733405432837,-266.86,0.0003,31]
[344391952,1733405432847,-266.86,0.0003,31]
[344391953,1733405432856,-266.86,0.0003,31]
[344391954,1733405432866,-266.86,0.0003,31]
[344391955,1733405432875,-266.86,0.0003,31]
[344391956,1733405432885,-266.86,0.0003,31]
[344391957,1733405432895,-266.86,0.0003,31]
[344391958,1733405432904,-266.86,0.0003,31]
[344391959,1733405432914,-220.0,0.0003,2]
[344391960,1733405432923,-500.0,0.00030135,2]
[344391961,1733405432931,-500.0,0.00030136,7]
[344391962,1733405432940,-161.933,0.00030136,25]
[344391963,1733405432950,-488.0,0.00030136,7]
[344391964,1733405432960,-500.0,0.00030136,7]
[344391965,1733405432969,-500.0,0.00030136,7]
[344391966,1733405432979,-500.0,0.00030136,7]
[344391967,1733405432988,-500.0,0.00030136,7]
[344391968,1733405432998,-500.0,0.00030136,7]
[344391970,1733405433007,-568.77451395,0.00030136,7]
[344391972,1733405433017,-500.0,0.00030136,7]
[344391974,1733405433027,-500.0,0.00030136,7]
[344391976,1733405433036,-500.0,0.00030136,7]
[344391978,1733405433046,-500.0,0.00030136,7]
[344391980,1733405433056,-500.0,0.00030136,7]
[344391982,1733405433068,-500.0,0.00030136,7]
[344391984,1733405433078,-473.17677797,0.00030136,7]
[344391986,1733405433088,-504.81257293,0.00030136,7]
[344391988,1733405433097,-500.0,0.00030136,7]
[344391990,1733405433107,-500.0,0.00030136,7]
[344391992,1733405433116,-500.0,0.00030136,7]
[344391994,1733405433126,-500.0,0.00030136,7]
[344391996,1733405433136,-638.12104473,0.00030136,7]
[344391998,1733405433145,-500.0,0.00030136,7]
[344392000,1733405433155,-500.0,0.00030136,7]
[344392002,1733405433166,-500.0,0.00030136,7]
[344392004,1733405433176,-500.0,0.00030136,7]
[344392006,1733405433186,-500.0,0.00030136,7]
[344392008,1733405433196,-1003.91480103,0.00030136,5]
[344392010,1733405433205,-500.0,0.00030136,7]
[344392012,1733405433215,-500.0,0.00030136,7]
[344392014,1733405433224,-500.0,0.00030136,7]
[344392016,1733405433233,-500.0,0.00030136,7]
[344392018,1733405433243,-458.36737476,0.00030136,7]
[344392020,1733405433251,-481.66000437,0.00030136,7]
[344392022,1733405433261,-500.0,0.00030136,7]
[344392023,1733405433270,-500.0,0.00030136,7]
[344392024,1733405433279,-500.0,0.00030136,7]
[344392025,1733405433290,-500.0,0.00030136,7]
[344392027,1733405433299,-500.0,0.00030136,7]
[344392029,1733405433309,-500.0,0.00030136,7]
[344392031,1733405433320,-500.0,0.00030136,7]
[344392032,1733405433330,-500.0,0.00030136,7]
[344392033,1733405433339,-500.0,0.00030136,7]
[344392034,1733405433348,-500.0,0.00030136,7]
[344392035,1733405433358,-500.0,0.00030136,7]
[344392038,1733405433371,-500.0,0.00030136,7]
[344392040,1733405433380,-500.0,0.00030136,7]
[344392041,1733405433391,-500.0,0.00030136,7]
[344392043,1733405433402,-500.0,0.00030136,7]
[344392045,1733405433411,-412.34486148,0.00030136,7]
[344392047,1733405433420,-500.0,0.00030136,7]
[344392049,1733405433429,-500.0,0.00030136,7]
[344392051,1733405433440,-500.0,0.00030136,7]
[344392053,1733405433450,-404.6723063,0.00030136,7]
[344392054,1733405433459,-500.0,0.00030136,7]
[344392055,1733405433468,-500.0,0.00030136,7]
[344392056,1733405433478,-500.0,0.00030136,7]
[344392057,1733405433487,-533.78,0.00030136,7]
[344392058,1733405433496,-378.37894124,0.00030136,7]
[344392059,1733405433506,-525.76287008,0.00030136,7]
[344392060,1733405433515,-500.0,0.00030136,7]
[344392061,1733405433524,-500.0,0.00030136,7]
[344392062,1733405433534,-500.0,0.00030136,7]
[344392063,1733405433543,-500.0,0.00030136,7]
[344392064,1733405433552,-200.95201779,0.00030136,7]
[344392065,1733405433564,-500.0,0.00030136,7]
[344392066,1733405433575,-500.0,0.00030136,7]
[344392067,1733405433584,-500.0,0.00030136,7]
[344392068,1733405433594,-500.0,0.00030136,7]
[344392069,1733405433603,-626.42692228,0.00030136,7]
[344392070,1733405433613,-500.0,0.00030136,7]
[344392071,1733405433622,-500.0,0.00030136,7]
[344392072,1733405433632,-500.0,0.00030136,7]
[344392073,1733405433641,-500.0,0.00030136,7]
[344392074,1733405433652,-500.0,0.00030136,7]
[344392075,1733405433661,-500.0,0.00030136,7]
[344392076,1733405433671,-500.0,0.00030136,7]
[344392077,1733405433681,-500.0,0.00030136,7]
[344392078,1733405433690,-500.0,0.00030136,7]
[344392079,1733405433700,-500.0,0.00030136,7]
[344392080,1733405433710,-500.0,0.00030136,7]
[344392081,1733405433719,-500.0,0.00030136,7]
[344392082,1733405433729,-500.0,0.00030136,7]
[344392083,1733405433739,-500.0,0.00030136,7]
[344392084,1733405433748,-500.0,0.00030136,7]
[344392085,1733405433758,-345.53477091,0.00030136,7]
[344392086,1733405433767,-390.17,0.00030136,7]
[344392087,1733405433777,-500.0,0.00030136,7]
[344392088,1733405433787,-500.0,0.00030136,7]
[344392089,1733405433797,-500.0,0.00030136,7]
[344392090,1733405433806,-500.0,0.00030136,7]
[344392091,1733405433818,-500.0,0.00030136,7]
[344392092,1733405433828,-500.0,0.00030136,7]
[344392093,1733405433837,-500.0,0.00030136,7]
[344392094,1733405433847,-500.0,0.00030136,7]
[344392095,1733405433857,-500.0,0.00030136,7]
[344392096,1733405433866,-500.0,0.00030136,7]
[344392097,1733405433876,-610.84421314,0.00030136,7]
[344392098,1733405433885,-500.0,0.00030136,7]
[344392099,1733405433895,-500.0,0.00030136,7]
[344392100,1733405433904,-500.0,0.00030136,7]
[344392101,1733405433914,-500.0,0.00030136,7]
[344392102,1733405433923,-500.0,0.00030136,7]
[344392103,1733405433933,-500.0,0.00030136,7]
[344392104,1733405433944,-500.0,0.00030136,7]
[344392105,1733405433955,-500.0,0.00030136,7]
[344392106,1733405433966,-500.0,0.00030136,7]
[344392107,1733405433976,-500.0,0.00030136,7]
[344392108,1733405433986,-500.0,0.00030136,7]
[344392109,1733405433996,-500.0,0.00030136,7]
[344392110,1733405434006,-500.0,0.00030136,7]
[344392111,1733405434014,-500.0,0.00030136,7]
[344392112,1733405434023,-500.0,0.00030136,7]
[344392113,1733405434033,-500.0,0.00030136,7]
[344392114,1733405434042,-500.0,0.00030136,7]
[344392115,1733405434052,-500.0,0.00030136,7]
[344392116,1733405434062,-500.0,0.00030136,7]
[344392117,1733405434071,-500.0,0.00030136,7]
[344392118,1733405434081,-500.0,0.00030136,7]
[344392119,1733405434091,-500.0,0.00030136,7]
[344392120,1733405434101,-500.0,0.00030136,7]
[344392121,1733405434110,-500.0,0.00030136,7]
[344392122,1733405434120,-500.0,0.00030136,7]
[344392123,1733405434129,-500.0,0.00030136,7]
[344392124,1733405434139,-500.0,0.00030136,7]
[344392125,1733405434269,-500.0,0.00030136,7]
[344392126,1733405434282,-500.0,0.00030136,7]
[344392127,1733405434293,-500.0,0.00030136,7]
[344392128,1733405434303,-500.0,0.00030136,7]
[344392129,1733405434316,-844.94,0.00030136,7]
[344392130,1733405434327,-844.94,0.00030136,7]
[344392131,1733405434338,-844.94,0.00030136,7]
[344392132,1733405434348,-844.94,0.00030136,7]
[344392133,1733405434361,-500.0,0.00030136,7]
[344392134,1733405434372,-500.0,0.00030136,7]
[344392135,1733405434382,-569.36,0.00030136,7]
[344392136,1733405434392,-500.0,0.00030136,7]
[344392137,1733405434403,-500.0,0.00030136,7]
[344392138,1733405434413,-500.0,0.00030136,7]
[344392139,1733405434423,-500.0,0.00030136,7]
[344392140,1733405434434,-500.0,0.00030136,7]
[344392141,1733405434445,-579.13930769,0.00030136,7]
[344392142,1733405434455,-187.234086,0.00030137,120]
[344392143,1733405434465,-500.0,0.00030398,7]
[344392144,1733405434475,-500.0,0.00030398,7]
[344392145,1733405434485,-500.0,0.00030398,7]
[344392146,1733405434495,-500.0,0.00030398,7]
[344392147,1733405434505,-844.94,0.00030398,7]
[344392148,1733405434515,-500.0,0.00030399,7]
[344392149,1733405434525,-500.0,0.00030399,7]
[344392150,1733405434535,-167.7,0.00030399,7]
[344392151,1733405434546,-500.0,0.00030399,7]
[344392152,1733405434556,-500.0,0.00030399,7]
[344392153,1733405434568,-193.85825402,0.00030399,7]
[344392154,1733405434578,-500.0,0.00030399,7]
[344392155,1733405434588,-502.33931071,0.00030399,7]
[344392156,1733405434598,-500.0,0.00030399,7]
[344392157,1733405434608,-266.86,0.000304,31]
[344392158,1733405434618,-266.86,0.000304,31]
[344392159,1733405434628,-266.86,0.000304,31]
[344392160,1733405434638,-266.86,0.000304,31]
[344392161,1733405434647,-266.86,0.000304,31]
[344392162,1733405434657,-266.86,0.000304,31]
[344392163,1733405434666,-266.86,0.000304,31]
[344392164,1733405434676,-266.86,0.000304,31]
[344392165,1733405434686,-266.86,0.000304,31]
[344392166,1733405434696,-266.86,0.000304,31]
[344392167,1733405434705,-266.86,0.000304,31]
[344392168,1733405434715,-266.86,0.000304,31]
[344392169,1733405434725,-266.86,0.000304,31]
[344392170,1733405434734,-266.86,0.000304,31]
[344392171,1733405434743,-266.86,0.000304,31]
[344392172,1733405434753,-266.86,0.000304,31]
[344392173,1733405434763,-266.86,0.000304,31]
[344392174,1733405434773,-266.86,0.000304,31]
[344392175,1733405434782,-266.86,0.000304,31]
[344392176,1733405434792,-266.86,0.000304,31]
[344392177,1733405434801,-266.86,0.000304,31]
[344392178,1733405434812,-266.86,0.000304,31]
[344392179,1733405434822,-266.86,0.000304,31]
[344392180,1733405434832,-266.86,0.000304,31]
[344392181,1733405434842,-152.93309696,0.00030457,2]
[344392182,1733405434852,-500.0,0.00030497,7]
[344392183,1733405434862,-500.0,0.00030497,7]
[344392184,1733405434872,-500.0,0.00030497,7]
[344392185,1733405434882,-500.0,0.00030497,7]
[344392186,1733405434891,-500.0,0.00030498,7]
[344392187,1733405434901,-500.0,0.00030498,7]
[344392188,1733405434911,-631.3897099,0.00030498,7]
[344392189,1733405434920,-500.0,0.00030498,7]
[344392190,1733405434930,-500.0,0.00030499,7]
[344392191,1733405434940,-296.4,0.00030499,7]
[344392192,1733405434949,-500.0,0.00030499,7]
[344392193,1733405434958,-844.94,0.00030499,7]
[344392194,1733405434968,-844.94,0.00030499,7]
[344392195,1733405434978,-20886.28074702,0.000305,2]
[344392196,1733405434988,-9893.42626011,0.000305,2]
[344392197,1733405434998,-500.0,0.000305,7]
[344392198,1733405435008,-370.40537972,0.00030501,2]
[344392199,1733405435017,-500.0,0.00030589,7]
[344392200,1733405435027,-500.0,0.00030589,7]
[344392201,1733405435036,-1000.0,0.00030589,120]
[344392202,1733405435045,-500.0,0.00030589,7]
[344392203,1733405435054,-500.0,0.00030589,7]
[344392204,1733405435066,-500.0,0.00030589,7]
[344392205,1733405435078,-500.0,0.0003059,7]
[344392206,1733405435088,-500.0,0.0003059,7]
[344392207,1733405435097,-500.0,0.0003059,7]
[344392208,1733405435107,-500.0,0.00030591,7]
[344392209,1733405435116,-500.0,0.00030593,7]
[344392210,1733405435126,-4350.18458316,0.00030594,2]
[344392211,1733405435136,-844.94,0.00030598,7]
[344392212,1733405435145,-500.0,0.00030599,7]
[344392213,1733405435155,-500.0,0.00030599,7]
[344392214,1733405435165,-500.0,0.00030599,7]
[344392215,1733405435175,-500.0,0.00030599,7]
[344392216,1733405435184,-500.0,0.00030599,7]
[344392217,1733405435193,-534.46978852,0.00030599,7]
[344392218,1733405435203,-500.0,0.00030599,7]
[344392219,1733405435212,-500.0,0.00030599,7]
[344392220,1733405435222,-500.0,0.00030599,7]
[344392221,1733405435231,-500.0,0.00030599,7]
[344392222,1733405435241,-844.94,0.00030599,7]
[344392223,1733405435251,-284.04,0.00030599,7]
[344392224,1733405435260,-186.60008389,0.00030599,2]
[344392225,1733405435270,-2655.52,0.000306,30]
[344392226,1733405435279,-4652.3,0.000306,2]
[344392227,1733405435289,-528.13,0.000306,30]
[344392228,1733405435299,-500.0,0.000306,7]
[344392229,1733405435308,-500.0,0.000306,7]
[344392230,1733405435326,-500.0,0.000306,7]
[344392231,1733405435336,-500.0,0.000306,7]
[344392232,1733405435345,-500.0,0.000306,7]
[344392233,1733405435355,-480.012,0.000306,7]
[344392234,1733405435365,-151.0,0.000306,7]
[344392235,1733405435374,-151.0,0.000306,7]
[344392236,1733405435383,-151.0,0.000306,7]
[344392237,1733405435392,-151.0,0.000306,7]
[344392238,1733405435402,-151.0,0.000306,7]
[344392239,1733405435411,-151.0,0.000306,7]
[344392240,1733405435420,-151.0,0.000306,7]
[344392241,1733405435430,-151.0,0.000306,7]
[344392242,1733405435440,-151.0,0.000306,7]
[344392243,1733405435450,-151.0,0.000306,7]
[344392244,1733405435459,-151.0,0.000306,7]
[344392245,1733405435470,-151.0,0.000306,7]
[344392246,1733405435479,-204.461112,0.000306,7]
[344392247,1733405435488,-177.92878024,0.000306,7]
[344392248,1733405435498,-151.0,0.000306,7]
[344392249,1733405435507,-151.0,0.000306,7]
[344392250,1733405435516,-151.0,0.000306,7]
[344392251,1733405435526,-204.765096,0.000306,7]
[344392252,1733405435535,-151.0,0.000306,7]
[344392253,1733405435546,-151.0,0.000306,7]
[344392254,1733405435555,-151.0,0.000306,7]
[344392255,1733405435568,-151.0,0.000306,7]
[344392256,1733405435577,-151.0,0.000306,7]
[344392257,1733405435587,-151.0,0.000306,7]
[344392258,1733405435597,-151.0,0.000306,7]
[344392259,1733405435607,-151.0,0.000306,7]
[344392260,1733405435616,-151.0,0.000306,7]
[344392261,1733405435626,-151.0,0.000306,7]
[344392262,1733405435635,-151.0,0.000306,7]
[344392263,1733405435645,-151.0,0.000306,7]
[344392264,1733405435655,-151.0,0.000306,7]
[344392265,1733405435664,-151.0,0.000306,7]
[344392266,1733405435674,-151.0,0.000306,7]
[344392267,1733405435684,-151.0,0.000306,7]
[344392268,1733405435694,-151.0,0.000306,7]
[344392269,1733405435704,-258.766212,0.000306,7]
[344392270,1733405435714,-500.0,0.000306,7]
[344392271,1733405435724,-500.0,0.000306,7]
[344392272,1733405435733,-500.0,0.000306,7]
[344392273,1733405435743,-500.0,0.000306,7]
[344392274,1733405435752,-500.0,0.000306,7]
[344392275,1733405435762,-500.0,0.000306,7]
[344392276,1733405435773,-500.0,0.000306,7]
[344392277,1733405435782,-500.0,0.000306,7]
[344392278,1733405435792,-500.0,0.000306,7]
[344392279,1733405435802,-364.88552784,0.000306,7]
[344392280,1733405435814,-844.94,0.000306,7]
[344392281,1733405435826,-844.94,0.000306,7]
[344392282,1733405435836,-844.94,0.000306,7]
[344392283,1733405435846,-844.94,0.000306,7]
[344392284,1733405435855,-844.94,0.000306,7]
[344392285,1733405435865,-844.94,0.000306,7]
[344392286,1733405435874,-844.94,0.000306,7]
[344392287,1733405435883,-844.94,0.000306,7]
[344392288,1733405435893,-844.94,0.000306,7]
[344392289,1733405435902,-844.94,0.000306,7]
[344392290,1733405435911,-844.94,0.000306,7]
[344392291,1733405435921,-844.94,0.000306,7]
[344392292,1733405435930,-844.94,0.000306,7]
[344392293,1733405435940,-844.94,0.000306,7]
[344392294,1733405435949,-845.03,0.000306,7]
[344392295,1733405435957,-528700.658718,0.00030601,10]
[344392340,1733405438604,-2751.00932172,0.0002178,2]
[344392342,1733405438614,-200.0,0.0002772,2]
[344392344,1733405438624,-27469.96784583,0.00030601,10]
[344392346,1733405438636,-5155.5,0.00030601,10]
[344392551,1733405440520,-1663.235184,0.00030601,10]
[344392552,1733405440533,-25328.11589573,0.00030601,10]
[344392725,1733405443844,-0.96048157,0.00030295,2]
[344392726,1733405443856,-4999.03951843,0.00030295,2]
[344392727,1733405443866,-6893.46764375,0.00030601,10]
[344392728,1733405443983,-7302.22356162,0.00030601,10]
[344392729,1733405444267,-4994.59880714,0.00030601,10]
[344392736,1733405446497,-500.0,0.00030136,7]
[344392737,1733405446508,-500.0,0.00030136,7]
[344392738,1733405446517,-500.0,0.00030136,7]
[344392739,1733405446526,-500.0,0.00030136,7]
[344392740,1733405446536,-500.0,0.00030136,7]
[344392741,1733405446546,-16515.61327954,0.00030601,10]
[344392742,1733405446557,-33412.00473088,0.00030601,10]
[344392743,1733405446570,-11035.13487819,0.00030601,10]
[344392773,1733405745943,161.584649,0.00013973,2]
[344392778,1733406323948,25000.0,0.0001,2]
[344392779,1733406447064,161.584649,0.00013973,2]
[344392780,1733406550112,-182.0,0.00022,2]
[344392781,1733406550136,-401.80043502,0.00026599,5]
[344392782,1733406550158,-5000.0,0.0002663,2]
[344392783,1733406550180,-162.97286763,0.00026699,2]
[344392784,1733406550203,-300.0,0.00026899,2]
[344392785,1733406550229,-300.0,0.00026899,2]
[344392786,1733406550256,-10000.0,0.000269,14]
[344392857,1733406632934,-622.0,0.000282,13]
[344392859,1733406632945,-5000.0,0.00028428,2]
[344392861,1733406632955,-921.70103701,0.00028641,16]
[344392863,1733406632965,-200.0,0.00028715,2]
[344392865,1733406632975,-300.0,0.00028798,2]
[344392867,1733406632984,-300.0,0.00028798,2]
[344392869,1733406632994,-10000.5042705,0.00028799,2]
[344392871,1733406633003,-10000.5042705,0.00029222,2]
[344392873,1733406633012,-10000.5042705,0.00029375,2]
[344392875,1733406633022,-152.0,0.00029448,2]
[344392877,1733406633032,-157.994,0.0002963,2]
[344392879,1733406633042,-10000.5042705,0.00029639,2]
[344392881,1733406633051,-150.0,0.000297,2]
[344392883,1733406633060,-622.0,0.000297,14]
[344392885,1733406633069,-187.631555,0.00029716,2]
[344392887,1733406633079,-500.0,0.00029899,2]
[344392889,1733406633088,-500.0,0.00029899,2]
[344392891,1733406633097,-500.0,0.00029899,2]
[344392893,1733406633107,-500.0,0.00029899,2]
[344392894,1733406633116,-500.0,0.00029899,2]
[344392896,1733406633126,-409.49704838,0.00029899,2]
[344392897,1733406633135,-25000.0,0.000299,14]
[344392899,1733406633145,-794.0,0.0003,20]
[344392900,1733406633154,-791.0,0.0003,20]
[344392901,1733406633164,-791.0,0.0003,20]
[344392902,1733406633173,-791.0,0.0003,20]
[344392904,1733406633183,-279.18,0.0003,31]
[344392905,1733406633192,-279.18,0.0003,31]
[344392906,1733406633201,-279.18,0.0003,31]
[344392907,1733406633211,-279.18,0.0003,31]
[344392908,1733406633220,-279.18,0.0003,31]
[344392909,1733406633230,-279.18,0.0003,31]
[344392910,1733406633239,-279.18,0.0003,31]
[344392911,1733406633249,-279.18,0.0003,31]
[344392912,1733406633258,-279.18,0.0003,31]
[344392913,1733406633267,-279.18,0.0003,31]
[344392914,1733406633277,-279.18,0.0003,31]
[344392915,1733406633287,-279.18,0.0003,31]
[344392916,1733406633296,-183.0,0.0003,2]
[344392917,1733406633306,-1218.7047273,0.0003,2]
[344392918,1733406633316,-10000.5042705,0.00030043,2]
[344392919,1733406633325,-500.0,0.00030135,2]
[344392920,1733406633335,-500.0,0.00030136,7]
[344392921,1733406633345,-500.0,0.00030136,7]
[344392922,1733406633354,-500.0,0.00030136,7]
[344392923,1733406633364,-556.90267201,0.00030136,7]
[344392924,1733406633373,-500.0,0.00030136,7]
[344392925,1733406633383,-500.0,0.00030136,7]
[344392926,1733406633392,-500.0,0.00030136,7]
[344392927,1733406633401,-500.0,0.00030136,7]
[344392928,1733406633411,-215537.10477275,0.00030136,2]
[344392929,1733406633423,-213455.242956,0.00030136,2]
[344392930,1733406633452,176.912,0.00027343,2]
[344392949,1733406638727,-75466.93856709,0.00030136,2]
[344392951,1733406638739,-463.60001,0.00030136,2]
[344392999,1733406640670,-2918.89949196,0.00030136,2]
[344393016,1733406643813,-14193.06182471,0.00030136,2]
[344393017,1733406643825,-4998.83692279,0.00030136,2]
[344393018,1733406643859,-20322.41207163,0.00030136,2]
[344393019,1733406643870,-43161.94686608,0.00030136,2]
[344393020,1733406645819,5000.0,0.00024953,11]
[344393028,1733406661445,3743.68119343,0.00024953,11]
[344393029,1733406661472,1256.31880657,0.00024953,11]
[344393030,1733406677019,5000.0,0.00024953,11]
[344393031,1733406692763,2747.18173488,0.00024953,11]
[344393032,1733406692790,2187.6299802,0.00024953,11]
[344393033,1733406692814,65.18828492,0.00024953,11]
[344393035,1733406708187,5000.0,0.00024953,11]
[344393036,1733406723805,4200.41507296,0.00024953,11]
[344393041,1733407229601,161.584649,0.00013973,2]
[344393044,1733407539184,-465.61727469,0.00025303,2]
[344393045,1733407648030,-163.84763008,0.00025303,2]
[344393050,1733407760105,-1453.43196827,0.00024703,11]
[344393051,1733407760128,-1227.00076388,0.00024953,11]
[344393052,1733407760150,-300.0,0.00026341,2]
[344393053,1733407760170,-532.0,0.00026342,2]
[344393054,1733407760194,-2172.0,0.00026342,2]
[344393055,1733407760214,-2376.0,0.00026342,2]
[344393056,1733407760235,-150.655,0.00027343,2]
[344393057,1733407760257,-200.0,0.00027704,2]
[344393058,1733407760278,-166.36248,0.00027821,2]
[344393214,1733407834836,-560.0,0.000282,13]
[344393215,1733407834846,-170.9471319,0.00028352,2]
[344393216,1733407834855,-250.0,0.00028905,2]
[344393217,1733407834865,-157.843,0.0002907,2]
[344393218,1733407834875,-160.0,0.00029088,3]
[344393219,1733407834884,-4492.38738628,0.00029689,2]
[344393220,1733407834894,-248.0,0.00029699,2]
[344393221,1733407834903,-300.0,0.00029699,2]
[344393222,1733407834912,-225.188842,0.000297,2]
[344393223,1733407834922,-560.0,0.000297,14]
[344393224,1733407834931,-222.1431982,0.00029781,30]
[344393225,1733407834943,-213.2496734,0.00029781,30]
[344393226,1733407834954,-213.2496734,0.00029781,30]
[344393227,1733407834963,-2094.94116667,0.0002999,2]
[344393228,1733407834975,-7905.56310393,0.0002999,2]
[344393229,1733407834985,-254.28,0.0003,31]
[344393230,1733407834994,-254.28,0.0003,31]
[344393231,1733407835004,-254.28,0.0003,31]
[344393232,1733407835013,-254.28,0.0003,31]
[344393233,1733407835023,-254.28,0.0003,31]
[344393234,1733407835032,-254.28,0.0003,31]
[344393235,1733407835042,-254.28,0.0003,31]
[344393236,1733407835051,-254.28,0.0003,31]
[344393237,1733407835060,-254.28,0.0003,31]
[344393238,1733407835072,-254.28,0.0003,31]
[344393239,1733407835085,-254.28,0.0003,31]
[344393240,1733407835094,-254.28,0.0003,31]
[344393241,1733407835104,-305.0,0.0003,2]
[344393242,1733407835113,-589.56155008,0.00030036,2]
[344393243,1733407835123,-589.56155004,0.00030103,2]
[344393244,1733407835132,-267.72189427,0.00030135,2]
[344393245,1733407835143,-217461.44790699,0.00030136,2]
[344393246,1733407835153,-500.0,0.00030136,7]
[344393247,1733407835162,-500.0,0.00030136,7]
[344393248,1733407835172,-500.0,0.00030136,7]